Cogmind - Beta 15 @@@ ROGUE MODE // 2025.09.19 @ 12:47:03 Player: Petvaria Result: Self-destructed Performance ------------- Evolutions (5) 2500 Regions Visited (5) 1000 Robots Destroyed (10) 50 Value Destroyed (418) 418 Prototype IDs (2) 40 Alien Tech Used (0) 0 Bonus (448) 448 TOTAL SCORE: 4456 Bonus ------- Follower Combat Kills 160 Registered with UFD 300 Friendly Fire -12 Cogmind --------- Core Integrity 389/1000 Matter 300/300 Energy 100/100 System Corruption 6% Temperature Cool (0) Movement Core (750) Ox14 Location -5/Factory Parts ------- > --- POWER (1) -------- (None) > --- PROPULSION (5) --- (None) > --- UTILITY (9) ------ High-capacity Storage Unit Advanced Melee Analysis Suite > --- WEAPON (2) ------- Companion Sword > --- INVENTORY (20) --- Light Deuterium Engine Improved Aluminum Leg Carbon-fiber Leg Carbon-fiber Leg Improved Carbon-fiber Leg Field Propulsion Drive Deep Structural Scanner Subdweller Optics Surveybot 17 Chip Core Shielding CPS Tube (2) Peak State ------------ > --- POWER ------------ Improved Deuterium Engine > --- PROPULSION ------- Light Treads Improved Treads Spiked Treads Compact Wheel Subdweller Monowheel > --- UTILITY ---------- High-capacity Storage Unit Melee Analysis Suite Advanced Melee Analysis Suite Improved Utility Shielding > --- WEAPON ----------- Companion Sword > --- INVENTORY -------- Light Deuterium Engine Improved Aluminum Leg Improved Carbon-fiber Leg Field Propulsion Drive Deep Structural Scanner Subdweller Optics Surveybot 17 Chip Core Shielding CPS Tube [Rating: 33] Favorites ----------- Power Light Ion Engine Engine Light Ion Engine Propulsion Compact Wheel Treads Light Treads Wheel Compact Wheel Utility High-capacity Storage Unit Device V3-11A's Pendant Storage High-capacity Storage Unit Processor Advanced Melee Analysis Suite Protection Core Shielding Weapon Medium Laser Energy Gun Medium Laser Ballistic Gun Heavy Assault Rifle Impact Weapon Hammer Slashing Weapon Companion Sword Build | -11 -10 -10 -7 -7 -5 ------- Run | Yrd Mat Sub Rec Scr Fac Slots Evolved 10 | . . . . . 10 Power . | . . . . . . Propulsion 3 | . . . . . 3 Utility 7 | . . . . . 7 Weapon . | . . . . . . Parts Attached 24 | 6 7 2 1 4 4 Power 4 | 1 1 . . 2 . Engine 4 | 1 1 . . 2 . Core . | . . . . . . Reactor . | . . . . . . Propulsion 6 | 2 1 1 . 1 1 Treads 4 | 2 . 1 . . 1 Leg . | . . . . . . Wheel 2 | . 1 . . 1 . Hover . | . . . . . . Flight . | . . . . . . Utility 7 | 1 2 1 . . 3 Device 1 | . . 1 . . . Storage 2 | 1 1 . . . . Processor 2 | . . . . . 2 Hackware . | . . . . . . Protection 2 | . 1 . . . 1 Artifact . | . . . . . . Weapon 7 | 2 3 . 1 1 . Energy Gun 2 | 2 . . . . . Energy Cannon . | . . . . . . Ballistic Gun 3 | . 2 . 1 . . Ballistic Cannon . | . . . . . . Launcher . | . . . . . . Special Weapon . | . . . . . . Impact Weapon 1 | . 1 . . . . Slashing Weapon 1 | . . . . 1 . Piercing Weapon . | . . . . . . Special Melee Weapon . | . . . . . . Unidentified Prototypes 2 | . . 1 . 1 . Parts Lost 6 | . . . . . 6 Power 1 | . . . . . 1 Propulsion 3 | . . . . . 3 Utility 2 | . . . . . 2 Weapon . | . . . . . . Highest Loss Streak 6 | . . . . . 6 To Critical Strikes . | . . . . . . Average Backups 12 | 3 7 10 18 16 10 Power 1 | . . . 3 1 1 Propulsion 2 | 1 1 1 2 3 3 Utility 2 | . . 1 3 4 5 Weapon 6 | . 6 7 10 5 . Tool/Special . | . . . . . . Unused Backups 22 | . 3 . . 10 9 Power 3 | . . . . 3 . Propulsion 8 | . 3 . . . 5 Utility 4 | . . . . 1 3 Weapon 6 | . . . . 6 . Tool/Special 1 | . . . . . 1 Average Slot Usage (%) 91 | . 93 99 100 85 45 Engine 13 | . 13 14 14 14 3 Treads 13 | . 18 14 14 11 12 Wheel 14 | . 9 14 14 16 9 Device 6 | . . 11 14 1 . Storage 13 | . 14 14 14 14 5 Protection 1 | . 9 2 . . 1 Energy Gun 13 | . 14 14 14 12 . Ballistic Gun 10 | . 11 9 7 12 . Impact Weapon 2 | . . 4 6 . . Peak Build Rating 33 | 6 9 13 14 18 33 Average Rating 12 | 4 8 10 13 13 24 On Entrance 10 | . 6 9 13 14 18 Naked Turns . | . . . . . . Heaviest Build 56 | 14 51 49 49 55 56 Greatest Support 40 | 40 40 16 16 36 36 Greatest Overweight (x) 3 | . 3 3 3 3 3 Average Overweight (x) 2 | . 2 2 2 2 1 Largest Inventory Capacity 20 | 8 20 20 20 20 20 Average Capacity 19 | 6 15 20 20 20 20 Most Carried 20 | 6 9 19 19 20 14 Average Carried 13 | 3 7 10 19 16 10 Final Capacity 20 | 8 20 20 20 20 20 Final Carried 19 | 6 8 19 19 14 11 Class Distribution -------------------- 100% | Mutant Dominant Class ---------------- Mutant | -10/Materials Mutant | -10/Subcaves Mutant | -7/Recycling Mutant | -7/Scraptown Mutant | -5/Factory Resources | -11 -10 -10 -7 -7 -5 ----------- Run | Yrd Mat Sub Rec Scr Fac Matter Collected 608 | 205 124 133 . 36 110 Remotely . | . . . . . . Salvage Created 468 | . 127 117 63 . 161 Parts 27 | . 11 4 5 . 7 Haulers Intercepted . | . . . . . . Recyclers Shooed 1 | . 1 . . . . Parts Field Recycled . | . . . . . . Retrieved Matter . | . . . . . . Parts Self-Destructed 12 | . . 12 . . . Prevented . | . . . . . . Kills | -11 -10 -10 -7 -7 -5 ------- Run | Yrd Mat Sub Rec Scr Fac Combat Hostiles Destroyed 8 | . 2 2 1 . 3 Melee 3 | . . . . . 3 Guns 5 | . 2 2 1 . . Classes Destroyed 6 | . 2 2 . . 2 Watcher 2 | . 2 . . . . Grunt 3 | . 2 . . . 1 Duelist 1 | . . . . . 1 Sentry 2 | . . 1 1 . . Hunter 1 | . . . . . 1 Subdweller 1 | . . 1 . . . Best Kill Streak 2 | . 2 1 1 . 2 Combat Bots Only 2 | . 2 1 1 . 2 Max Kills in Single Turn 1 | . 1 1 1 . 1 Gunslinging . | . . . . . . Exploded . | . . . . . . Melee 1 | . . . . . 1 Uniques/NPCs Destroyed . | . . . . . . Combat | -11 -10 -10 -7 -7 -5 -------- Run | Yrd Mat Sub Rec Scr Fac Hostile Shots Fired 111 | . 15 16 . . 80 Missed 26 | . 4 3 . . 19 Hits 85 | . 11 13 . . 61 Melee 4 | . . . . . 4 Projectile 81 | . 11 13 . . 57 Critical Strikes 3 | . . . . . 3 Damage Taken 1657 | . 138 228 24 . 1267 Core 645 | . 17 17 . . 611 Absorbed by Shields . | . . . . . . Redirected to Shielding 37 | . . 4 . . 33 Core Remaining (%) 93 | 100 . . . 86 . Volleys Fired 31 | . 20 9 2 . . Largest 2 | . 2 2 2 . . Hottest 73 | . 73 73 73 . . Shots Fired 57 | . 36 17 4 . . Gun 57 | . 36 17 4 . . Cannon . | . . . . . . Launcher . | . . . . . . Special . | . . . . . . Kinetic 26 | . 16 8 2 . . Thermal 31 | . 20 9 2 . . Explosive . | . . . . . . Electromagnetic . | . . . . . . Robot Hit Streak 15 | . 5 15 1 . . Robot Miss Streak 4 | . 4 3 1 . . Penetration Max . | . . . . . . Secondary Targets . | . . . . . . Shots Hit Robots 51 | . 18 12 3 . 18 Core Hits 19 | . 7 5 2 . 5 Critical Kills . | . . . . . . Critical Parts Destroyed . | . . . . . . Critical Strikes 3 | . 3 . . . . Burn 3 | . 3 . . . . Melee Attacks 62 | . 2 34 1 . 25 Impact 37 | . 2 34 1 . . Slashing 25 | . . . . . 25 Piercing . | . . . . . . Sneak Attacks 5 | . . . 1 . 4 Combat Hostiles 3 | . . . . . 3 Follow-up Attacks . | . . . . . . Damage Inflicted 1319 | . 247 169 86 . 817 Guns 440 | . 247 169 24 . . Cannons . | . . . . . . Explosions . | . . . . . . Melee 879 | . . . 62 . 817 Ramming . | . . . . . . Kinetic 190 | . 120 70 . . . Thermal 250 | . 127 99 24 . . Explosive . | . . . . . . Electromagnetic . | . . . . . . Impact 62 | . . . 62 . . Slashing 817 | . . . . . 817 Piercing . | . . . . . . Highest Corruption 6 | . . . . . 6 Average Corruption 6 | . . . . . 6 Corruption Purged . | . . . . . . Corruption Blocked . | . . . . . . Effects 2 | . . . . . 2 Message Errors 1 | . . . . . 1 Heat Flow Errors 1 | . . . . . 1 Overload Shots . | . . . . . . Overflow Damage 97 | . . . . . 97 Projectiles . | . . . . . . Explosions . | . . . . . . Melee 97 | . . . . . 97 Knockbacks 1 | . . . 1 . . Impact 1 | . . . 1 . . Kinetic . | . . . . . . Secondary . | . . . . . . Self-Inflicted Damage . | . . . . . . Shots . | . . . . . . Rammed . | . . . . . . Targets Rammed . | . . . . . . Kicked . | . . . . . . Crushed . | . . . . . . Highest Temperature 183 | . 183 . 24 . 69 Average Temperature 56 | . 62 . 12 . 54 Received Heat Transfer 375 | . 75 69 6 . 225 Siege Activations . | . . . . . . Martial Activations . | . . . . . . Shielding Activations . | . . . . . . Robots Disrupted 1 | . . . . . 1 Combat Hostiles 1 | . . . . . 1 Robots Corrupted . | . . . . . . Combat Hostiles . | . . . . . . Parts Fried . | . . . . . . Impact Corruptions . | . . . . . . Robots Melted . | . . . . . . Combat Hostiles . | . . . . . . Parts Melted 1 | . . 1 . . . Heat Transferred 962 | . 592 296 74 . . Parts Sabotaged . | . . . . . . Parts Stolen . | . . . . . . Parts Stripped . | . . . . . . Power Chain Reactions . | . . . . . . Alert | -11 -10 -10 -7 -7 -5 ------- Run | Yrd Mat Sub Rec Scr Fac Maximum Alert Level . | . . . . . . Low Security (%) 100 | 100 100 . 100 . 100 Level 1 . | . . . . . . Level 2 . | . . . . . . Level 3 . | . . . . . . Level 4 . | . . . . . . Level 5 . | . . . . . . High Security . | . . . . . . Max Security . | . . . . . . Peak Influence 50 | . 50 . 30 . 50 Initial 30 | . . . 30 . . Average 8 | . 8 . 10 . 11 Influence Increases 435 | . 65 177 48 . 145 Destroy 0b10 Robot/C 280 | . 40 120 40 . 80 Destroy 0b10 Robot/NC 15 | . 10 . . . 5 Destroy Leader 44 | . 14 . . . 30 Allied During Kill 54 | . . 42 8 . 4 Destroy Structure 27 | . 1 . . . 26 Lose Combat Pursuer 15 | . . 15 . . . Influence Decreases 395 | . 65 114 111 . 105 Entered New Map 33 | . . . 33 . . Time Decay 227 | . 65 54 68 . 40 Lost Part 25 | . . . . . 25 Lost Ally 110 | . . 60 10 . 40 Squads Dispatched 2 | . . . . . 2 Investigation . | . . . . . . Extermination . | . . . . . . Reinforcement 2 | . . . . . 2 Assault . | . . . . . . Garrison . | . . . . . . Intercept . | . . . . . . Searches Triggered . | . . . . . . Construction Impeded . | . . . . . . Haulers Reinforced . | . . . . . . Active Scanning Responses . | . . . . . . Cargo Convoy Interrupts . | . . . . . . Stealth | -11 -10 -10 -7 -7 -5 --------- Run | Yrd Mat Sub Rec Scr Fac Distress Signals 2 | . . . . . 2 Communications Jammed . | . . . . . . Distress Signals . | . . . . . . Times Spotted 31 | . 6 15 2 . 8 Peak Tracking Total 5 | . 2 2 1 . 5 Tactical Retreats 1 | . . 1 . . . Traps | -11 -10 -10 -7 -7 -5 ------- Run | Yrd Mat Sub Rec Scr Fac Traps Triggered 3 | . 1 . . . 2 Indirectly . | . . . . . . Trap Hack Attempts . | . . . . . . Triggered . | . . . . . . Disarmed . | . . . . . . Reprogrammed . | . . . . . . Reused . | . . . . . . Traps Extracted . | . . . . . . Installed . | . . . . . . Triggered . | . . . . . . Machines | -11 -10 -10 -7 -7 -5 ---------- Run | Yrd Mat Sub Rec Scr Fac Machines Disabled 1 | . . 1 . . . Max in Single Turn . | . . . . . . Machines Repaired . | . . . . . . Machines Dismantled . | . . . . . . Machines Sabotaged . | . . . . . . Overloaded Fab Kills . | . . . . . . Hacking | -11 -10 -10 -7 -7 -5 --------- Run | Yrd Mat Sub Rec Scr Fac Machines Accessed 4 | . . . . 4 . Terminals . | . . . . . . Fabricators . | . . . . . . Repair Stations . | . . . . . . Recycling Units . | . . . . . . Scanalyzers . | . . . . . . Garrison Access . | . . . . . . Total Hacks 26 | . . . . 26 . Successful 26 | . . . . 26 . Failed . | . . . . . . Catastrophic . | . . . . . . Database Lockouts . | . . . . . . Manual . | . . . . . . Terminals . | . . . . . . Fabricators . | . . . . . . Repair Stations . | . . . . . . Recycling Units . | . . . . . . Scanalyzers . | . . . . . . Garrison Access . | . . . . . . Terminal Hacks 26 | . . . . 26 . Record 21 | . . . . 21 . Robot Analysis 4 | . . . . 4 . Open Door 1 | . . . . 1 . Fabricator Hacks . | . . . . . . Repair Station Hacks . | . . . . . . Recycling Unit Hacks . | . . . . . . Scanalyzer . | . . . . . . Garrison Access Hacks . | . . . . . . Unauthorized Hacks . | . . . . . . Terminals . | . . . . . . Fabricators . | . . . . . . Repair Stations . | . . . . . . Recycling Units . | . . . . . . Scanalyzers . | . . . . . . Garrison Access . | . . . . . . Data Cores Recovered . | . . . . . . Used . | . . . . . . Hacking Detections . | . . . . . . Full Trace Events . | . . . . . . Feedback Events . | . . . . . . Feedback Blocked . | . . . . . . Robot Schematics Acquired . | . . . . . . Robots Built . | . . . . . . Authchips . | . . . . . . Time . | . . . . . . Total Robot Build Rating . | . . . . . . Part Schematics Acquired . | . . . . . . Parts Built . | . . . . . . Authchips . | . . . . . . Time . | . . . . . . Total Part Build Rating . | . . . . . . Parts Repaired . | . . . . . . Time . | . . . . . . Parts Recycled . | . . . . . . Recycled Matter . | . . . . . . Retrieved Matter . | . . . . . . Retrieved Components . | . . . . . . Parts Scanalyzed . | . . . . . . Part Schematics Acquired . | . . . . . . Parts Damaged . | . . . . . . Bothacking | -11 -10 -10 -7 -7 -5 ------------ Run | Yrd Mat Sub Rec Scr Fac Used RIF Installer . | . . . . . . Robots Hacked . | . . . . . . Non-combat . | . . . . . . Combat . | . . . . . . Robot Hacks Applied . | . . . . . . Relay Couplers Released . | . . . . . . Fabnet Peak Effective % . | . . . . . . Robots Rewired . | . . . . . . Allies Hacked . | . . . . . . Hacks Repelled . | . . . . . . Allies | -11 -10 -10 -7 -7 -5 -------- Run | Yrd Mat Sub Rec Scr Fac Total Allies 10 | . . 10 . . . Largest Group 10 | . . 10 6 4 4 Highest-Rated Group 190 | . . 190 114 76 76 Highest-Rated Ally 19 | . . 19 19 19 19 Total Orders . | . . . . . . Ally Attacks 49 | . . 29 8 . 12 Total Damage 841 | . . 445 142 . 254 Kills 9 | . . 6 1 . 2 Allies Corrupted . | . . . . . . Allies Melted . | . . . . . . Intel | -11 -10 -10 -7 -7 -5 ------- Run | Yrd Mat Sub Rec Scr Fac Active Infowar (turns) . | . . . . . . Robot Analysis Total 4 | . . . . 4 . Derelict Logs Recovered 6 | . . 1 . 5 . Drone Launches . | . . . . . . Drone Recoveries . | . . . . . . Exploration | -11 -10 -10 -7 -7 -5 ------------- Run | Yrd Mat Sub Rec Scr Fac Turns Passed 5219 | 90 396 2421 254 1831 227 Spaces Moved 3403 | 58 160 1591 160 1332 102 Core 18 | 18 . . . . . Treads 84 | 40 44 . . . . Legs . | . . . . . . Wheels 3301 | . 116 1591 160 1332 102 Hover . | . . . . . . Flight . | . . . . . . Fastest Speed 50 | 50 130 130 130 117 117 Average Speed 137 | 125 148 140 138 134 123 Slowest Speed 160 | 160 160 145 145 145 145 Overloaded Moves . | . . . . . . Propulsion Burnouts . | . . . . . . Robots Hopped . | . . . . . . Potential Cave-ins . | . . . . . . Cave-ins Triggered 1 | . . . . . 1 Exploration Rate (%) 43 | 4 35 92 40 84 5 Regions Visited 5 Branch Regions 3 Pre-discovered Areas 6 | . . 1 . 5 . Known Exits Taken 1 | . . . . 1 . Unknown Exits Taken 4 | 1 1 1 1 . . Scrap Searched 11 | . . 5 . 6 . Spaces Dug 6 | . 1 3 . . 2 Terrain Destroyed 6 | . 1 3 . . 2 Melee 6 | . 1 3 . . 2 Projectile . | . . . . . . AOE . | . . . . . . Terrain Rammed . | . . . . . . Walls Destroyed . | . . . . . . Machines Disabled . | . . . . . . Actions | -11 -10 -10 -7 -7 -5 --------- Run | Yrd Mat Sub Rec Scr Fac Total 3782 | 75 278 1698 186 1380 165 Wait 180 | . 78 46 23 13 20 Move 3398 | 57 159 1590 159 1331 102 Hop . | . . . . . . Pick Up 49 | 12 7 12 . 12 6 Fast Attach 1 | . 1 . . . . Attach 19 | 6 2 1 . 1 9 Detach 1 | . . 1 . . . Swap 13 | . 5 4 1 3 . Drop 25 | . 4 1 . 20 . Fire 31 | . 20 9 2 . . Melee 62 | . 2 34 1 . 25 Ram . | . . . . . . Kick . | . . . . . . Crush . | . . . . . . Escape Stasis . | . . . . . . Rewire 3 | . . . . . 3 Trap . | . . . . . . Miscellaneous . | . . . . . . Route ------- -11/Scrapyard -10/Materials (discovered 4 exits: [*Mat x2] / [*Min] / [*Sub]) -10/Subcaves (discovered 3 exits: [*Mat x2] / [*Rec]) -7/Recycling -7/Scraptown (discovered 2 exits: *Fac x2) -5/Factory (discovered 7 exits: Fac x3 / Upp x2 / Ext x2) History --------- Turn | Location | Event 6 | -11/Scrapyard | Discovered new exit (range 16) 91 | -11/Scrapyard | Entered Materials 290 | -10/Materials | Discovered new exit (range 10) 302 | -10/Materials | Build established: Mutant 314 | -10/Materials | Discovered new exit (range 16) 377 | -10/Materials | Discovered new exit (range 16) 466 | -10/Materials | Discovered new exit (range 9) 487 | -10/Materials | Entered Subcaves 736 | -10/Subcaves | Shifting Twisted Machinery released Riot Gun 742 | -10/Subcaves | Shifting Twisted Machinery released Barrage Gun 868 | -10/Subcaves | Visited triangular shrine 877 | -10/Subcaves | Found Prototype Device 880 | -10/Subcaves | Identified V3-11A's Pendant 885 | -10/Subcaves | Befriended Subdweller 1788 | -10/Subcaves | Curiously followed by a Cobbler waking with a query about "LVR3C" 1873 | -10/Subcaves | Shifting Twisted Machinery released Battle Rifle 1874 | -10/Subcaves | Shifting Twisted Machinery released Sub. Optics 1928 | -10/Subcaves | Learned Materials emergency access door positions 1972 | -10/Subcaves | Discovered new exit (range 11) 2019 | -10/Subcaves | Shifting Twisted Machinery released Spk. Treads 2037 | -10/Subcaves | Learned location of Zion (-7) 2037 | -10/Subcaves | Met a Zionite searching for "candidates" 2055 | -10/Subcaves | Befriended Subdweller 2059 | -10/Subcaves | Ambushed by Subdwellers from Twisted Machinery 2060 | -10/Subcaves | Befriended Subdweller 2060 | -10/Subcaves | Befriended Subdweller 2060 | -10/Subcaves | Befriended Subdweller 2144 | -10/Subcaves | Discovered new exit (range 8) 2150 | -10/Subcaves | Befriended Subdweller 2150 | -10/Subcaves | Befriended Subdweller 2173 | -10/Subcaves | Shifting Twisted Machinery released Battle Cannon 2405 | -10/Subcaves | Befriended Subdweller 2405 | -10/Subcaves | Befriended Subdweller 2655 | -10/Subcaves | Befriended Subdweller 2880 | -10/Subcaves | Discovered new exit (range 3) 2908 | -10/Subcaves | Entered Recycling 2908 | -7/Recycling | Accompanied by 6 allies 2938 | -7/Recycling | Lost 3 allies 3110 | -7/Recycling | Scanned before Scraplab entrance 3143 | -7/Recycling | Entered Scraplab 3155 | -7/Recycling | Discovered new exit (range 3) 3162 | -7/Recycling | Entered Scraptown 3162 | -7/Scraptown | Accompanied by 4 allies 3344 | -7/Scraptown | Delivered V3-11A's Pendant to T0-NE2 in exchange for information 3518 | -7/Scraptown | Scanned Subdweller tech in exchange for log data 3520 | -7/Scraptown | Learned Factory emergency access door positions 3522 | -7/Scraptown | Learned Factory stockpile data 3523 | -7/Scraptown | Learned location of 1 exit from Factory 3524 | -7/Scraptown | Learned location of Extension (-5) 3546 | -7/Scraptown | Discovered new exit (range 7) 3644 | -7/Scraptown | Visited TADAMA 3688 | -7/Scraptown | Visited UFD Registry 3688 | -7/Scraptown | Registered with UFD as "Cargodriver" 3720 | -7/Scraptown | Visited Bundlers 3823 | -7/Scraptown | Visited Comm Corps 3842 | -7/Scraptown | Visited Cyclists 4093 | -7/Scraptown | Visited Fellowship of the Rings 4133 | -7/Scraptown | Visited Junk Repository 4206 | -7/Scraptown | Visited Curators Association 4314 | -7/Scraptown | Visited Analyses Database 4351 | -7/Scraptown | Visited Scrapoid Pod Storage 4371 | -7/Scraptown | Visited Science Testing Area 4385 | -7/Scraptown | Visited Cartography Club 4594 | -7/Scraptown | Found Surveybot 17 Chip 4674 | -7/Scraptown | Learned location of Cetus (-5) 4674 | -7/Scraptown | Learned location of Hub_04(d) (-5) 4674 | -7/Scraptown | Learned location of Armory (-4) 4674 | -7/Scraptown | Learned 8 Factory zone layouts 4674 | -7/Scraptown | Learned 16 Factory zone layouts 4674 | -7/Scraptown | Learned 8 Research zone layouts 4674 | -7/Scraptown | Learned 12 Research zone layouts 4674 | -7/Scraptown | Learned 4 Access zone layouts 4674 | -7/Scraptown | Learned 8 Upper Caves zone layouts 4674 | -7/Scraptown | Learned 8 Access zone layouts 4674 | -7/Scraptown | Learned 12 Proximity Caves zone layouts 4674 | -7/Scraptown | Learned Factory emergency access door positions 4674 | -7/Scraptown | Learned location of 3 exits from Factory 4674 | -7/Scraptown | Identified exit to Factory 4674 | -7/Scraptown | Learned location of 2 exits from Upper Caves 4745 | -7/Scraptown | Found Deep Structural Scanner 4797 | -7/Scraptown | Visited Abandonware Association 4806 | -7/Scraptown | Learned abandonware demo "OVRCLOCK.EXE" 4811 | -7/Scraptown | Learned abandonware demo "KABOOM.EXE" 4811 | -7/Scraptown | Learned abandonware demo "POISON.EXE" 4839 | -7/Scraptown | Visited Sword Containment 4907 | -7/Scraptown | Visited Research Penetration Think Tank 4993 | -7/Scraptown | Entered Factory 4993 | -5/Factory | Accompanied by 4 allies 4993 | -5/Factory | Evolved 10 slots: Propulsion x3, Utility x7 4994 | -5/Factory | Identified exit to Extension 4995 | -5/Factory | Identified exit to Factory 4995 | -5/Factory | Identified exit to Upper Caves 5136 | -5/Factory | Lost 3 allies 5165 | -5/Factory | Crushed by falling debris 5213 | -5/Factory | Core integrity fell below 50% 5220 | -5/Factory | Self-destructed Last Messages --------------- Sneak attack on L-41 Fighter. Companion Sword: "It's Duelist hunting season!" Penetrated by Slug. Com. Wheel destroyed. Penetrated by Slug. Sneak attack on L-41 Fighter. L-41 Fighter destroyed. Penetrated by Slug. Slug penetrates Terminal. Penetrated by Slug. Sub. Monowheel destroyed. Penetrated by Slug. H-66 Slayer destroyed. R-10 Processor collects Targeting Computer. R-10 Processor collects Microactuators. Destroyed Lgt. Angular Momentum Engine. K-01 Serf collects debris. Critical hit (Burn: +37). K-01 Serf collects debris. &VPS,SBPCO>V=ZW&D%NQPSFQXU Map ----- +----------------------------------------------------+ | #"T??????? ??????=?????????????????????? | | "" #""??????? ??????????????????????????? | | F" # ??????? #?????????????????????????? | | " # ??????? #?????????????????????????? | | " "" # ??????# ######????????????????????? | | " # ??????# ????????????????????? | | " # ??????# ?????????????????????? | | " ########## ??????????????????????? | | " #?# !# ???????????????????????? | | #?# !/! # ????????????????????????? | | #?# !/! # #?????????????????????????? | | #?# /!! # #?????????????????????????? | | #########?# # #?????????????????????????? | | ??????????# !![! # #?????????????????????????? | | #############+#### ##############????????????? | | &%&& & [ # ?????????????? | | ##################%! # ?????????????? | | ??????####??######%* # " " #????????????? | | ???####T ####""""%!= # " " #????????????? | | ???# # " " #????????????? | | ?????? # " " #????????????? | | ?????? kk " " #????????????? | | ?????? #k " " #????????????? | | ??????? #u " " #????????????? | | ??????? ###"""""" #g""T"" " " #????????????? | | ?????????# # #!@"""" " " #????????????? | | ?????????? # #ukg= #????????????? | | ?????????? # ##############????????????? | | ?????????? # ###"#########?????????????? | | ??????????? # # ?????????????? | | ??????????? # # ?????????????? | | ??????????? # # ?????????????? | | ??????????? # # ?????????????? | | ??????????! # # ?????????????? | | ??????????? # + ?????????????? | | ??????????? # # ????????????? | | ??????????? # # ???????????? | | ???????????####### # ????????????? | | ???????????#####?# # ????????????? | | ??????????? #?# #############?????????????? | | ??????????? #?# ######?????????????? | | ??????????? #?# # ""?????????????? | | ??????????? #?# """ # ""?????????????? | | ??????????? ### T" + ""?????????????? | | ??????????? #"" """ # ?????????????? | | ###"""""" ??????????????????????????????????????? | | ??#"""""" ??????????????????????????????????????? | | ??#"""""" ??????????????????????????????????????? | | ??#"""""" ??????????????????????????????????????? | | ??#"""""" ??????????????????????????????????????? | +----------------------------------------------------+ Best States ------------- Heat Dissipation 40 Energy Generation 16 Energy Capacity 290 Matter Stores 300 Matter Capacity 300 Sight Range 16 Terrain Scan Density 10 Core Shielding 20 Utility Shielding 66 Evasion (%) 50 Melee Accuracy 13 Recoil Reduction 2 Item Schematics ----------------- None Robot Schematics ------------------ None Fabricated ------------ Nothing Repaired ---------- Nothing Alien Tech Used ----------------- None Achievements -------------- None Challenges ------------ None Game ------ Seed TechSalvagingAutobeam Manual? 1 Play Time 00:26:02 Cumulative 235.9 hours Start 2025.09.19 @ 12:22:39 End 2025.09.19 @ 12:47:03 Sessions 1 Manual Loads 0 Difficulty Rogue Special Mode None Game No. 206 Rogue 206 Adventurer 0 Explorer 0 Win Type - Total 13 Types 7/0/2/2/1/0/0/0/0/1 Lore% 93 Gallery% 86 Achievement% 75 Wizard Run 0 Options --------- Layout 1 ASCII 0 Keyboard 0 Movement Numpad Keybinds 0 Fullscreen 1 Font 24/Proggy Map View 50x35 Zoom Use 0% Tactical HUD 0 Map Filters NONE Filters NONE Steam 1 RUN: c8e2e10a-e3e6-4f0d-a202-5a8798d3641e